bitfinex/quotes_SOLUSD_20250310
["timestamp","ask_amount","ask_price","bid_price","bid_amount"]
[1741588929908,0.14216157,127.1,127.08,14.972]
[1741588930101,0.14216157,127.1,127.08,7.103]
[1741588930908,0.17216157,127.12,127.08,25.81397078]
[1741588931327,0.17216157,127.12,127.08,337.81397078]
[1741588932611,0.03,127.12,127.1,10.84217078]
[1741588932799,0.03,127.12,127.11,10.84217078]
[1741588935126,0.03,127.12,127.11,18.70937078]
[1741588935638,0.03,127.14,127.13,10.84217078]
[1741588935818,0.03,127.14,127.13,19.04141398]
[1741588936013,0.03,127.14,127.13,17.86217078]
[1741588936939,0.03,127.14,127.13,329.86217078]
[1741588937112,0.03,127.14,127.13,337.72807078]
[1741588937934,0.03,127.14,127.13,339.38457078]
[1741588938143,0.0001,127.14,127.13,341.38457078]
[1741588938732,0.0001,127.14,127.13,576.93421964]
[1741588941842,0.0001,127.14,127.13,264.93421964]
[1741588943532,0.0001,127.14,127.13,246.28457078]
[1741588943744,0.0001,127.14,127.13,244.28457078]
[1741588943908,0.0001,127.14,127.13,246.28457078]
[1741588944723,0.0001,127.14,127.13,558.28457078]
[1741588945756,0.0001,127.14,127.13,264.93421964]
[1741588948748,0.0001,127.14,127.13,576.93421964]
[1741588949047,0.0001,127.14,127.13,574.93421964]
[1741588949247,0.0001,127.14,127.13,262.93421964]
[1741588949977,0.0001,127.14,127.13,235.60807078]
[1741588950163,0.0001,127.14,127.13,231.7459]
[1741588950363,0.0001,127.14,127.13,88.48]
[1741588950753,0.0001,127.14,127.13,81.5]
[1741588950955,0.0001,127.14,127.13,88.48]
[1741588952479,0.0001,127.14,127.13,96.3459]
[1741588955468,0.0001,127.14,127.13,107.18807078]
[1741588956564,0.0001,127.14,127.13,242.58807078]
[1741588957362,0.0001,127.14,127.13,223.88]
[1741588959474,0.0001,127.14,127.13,231.7459]
[1741588959666,0.0001,127.14,127.13,223.88]
[1741588959986,0.0001,127.14,127.13,231.7459]
[1741588960198,0.0001,127.14,127.13,242.58807078]
[1741588960764,0.0001,127.14,127.13,261.23771964]
[1741588961100,0.0001,127.14,127.13,263.23771964]
[1741588964290,0.0001,127.14,127.13,575.23771964]
[1741588964459,0.0001,127.14,127.13,575.30071964]
[1741588968606,18.40898577,127.21,127.14,18.64964886]
[1741588968777,18.40898577,127.21,127.14,235.54964886]
[1741588968980,10.98433235,127.22,127.17,10.84217078]
[1741588969289,10.98433235,127.22,127.18,6.94]
[1741588970083,10.98433235,127.22,127.19,7.8622]
[1741588970287,10.84217078,127.23,127.19,7.8622]
[1741588970694,0.14216157,127.22,127.19,7.8622]
[1741588972188,0.14216157,127.23,127.19,18.70437078]
[1741588972361,0.14216157,127.23,127.2,10.84217078]
[1741588974274,0.14216157,127.23,127.21,7.861]
[1741588980587,11.15649392,127.25,127.21,7.861]
[1741588982200,0.14216157,127.23,127.21,7.861]
[1741588982579,11.01433235,127.25,127.21,7.861]
[1741588982985,0.17216157,127.25,127.22,6.94]
[1741588983186,0.17216157,127.25,127.22,14.7998]
[1741588984587,0.14216157,127.24,127.22,14.7998]
[1741588986083,0.03,127.25,127.22,14.7998]
[1741588986286,0.14216157,127.24,127.22,14.7998]
[1741588987399,0.03,127.25,127.22,14.7998]
[1741588988907,0.14216157,127.24,127.22,14.7998]
[1741588989092,0.14216157,127.24,127.22,6.94]
[1741588989898,0.03,127.25,127.22,14.8003]
[1741588990182,0.03,127.25,127.22,25.64247078]
[1741588990499,0.03,127.25,127.23,10.84217078]
[1741588991687,0.03,127.25,127.24,7.8591]
[1741588993405,0.03,127.25,127.24,18.70127078]
[1741588993603,0.03,127.26,127.24,20.24367078]
[1741588993803,0.03,127.26,127.25,10.84217078]
[1741588994304,0.03,127.26,127.24,237.14367078]
[1741588994705,0.03,127.26,127.24,235.60127078]
[1741588996506,0.03,127.26,127.24,216.9]
[1741588997312,10.87217078,127.26,127.24,6.94]
[1741588998419,0.03,127.26,127.24,6.94]
[1741589000701,10.87217078,127.26,127.24,6.94]
[1741589001312,18.70007078,127.26,127.24,6.94]
[1741589002711,10.84217078,127.25,127.24,6.94]
[1741589002903,10.84217078,127.25,127.22,81.5]
[1741589003106,10.84217078,127.24,127.22,81.5]
[1741589003306,0.14216157,127.23,127.22,81.5]
[1741589004234,10.48433235,127.25,127.22,81.5]
[1741589006022,18.34293235,127.25,127.22,81.5]
[1741589006224,0.14216157,127.23,127.22,81.5]
[1741589006822,0.14216157,127.24,127.22,81.5]
[1741589007006,0.14216157,127.24,127.21,14.8008]
[1741589008522,0.14216157,127.25,127.22,10.84217078]
[1741589010330,0.14216157,127.25,127.23,7.8597]
[1741589011243,0.17216157,127.27,127.24,10.84217078]
[1741589011403,0.17216157,127.27,127.25,6.94]
[1741589011599,0.03,127.27,127.25,6.94]
[1741589012101,0.03,127.26,127.25,223.84]
[1741589012333,0.03,127.26,127.25,242.54067078]
[1741589013134,0.03,127.26,127.25,231.6985]
[1741589013836,0.03,127.26,127.25,6.94]
[1741589014328,0.03,127.26,127.25,14.7985]
[1741589016430,0.03,127.26,127.25,25.64067078]
[1741589016726,0.03,127.26,127.25,14.7985]
[1741589018621,0.03,127.26,127.25,25.64067078]
[1741589018825,0.03,127.26,127.25,242.54067078]
[1741589022538,0.03,127.26,127.25,554.54067078]
[1741589024926,0.03,127.26,127.25,242.54067078]
[1741589026517,0.03,127.26,127.25,231.6985]
[1741589027426,0.03,127.26,127.25,242.54067078]
[1741589027821,0.03,127.26,127.25,231.6985]
[1741589028541,0.03,127.26,127.24,6.94]
[1741589028542,10.87217078,127.26,127.24,6.94]
[1741589029034,0.03,127.26,127.24,6.94]
[1741589030143,0.03,127.26,127.24,14.7991]
[1741589034440,0.03,127.26,127.24,25.64127078]
[1741589035821,0.03,127.26,127.25,10.84217078]
[1741589036016,0.03,127.26,127.24,25.64127078]
[1741589036218,0.03,127.26,127.25,10.84217078]
[1741589036441,0.03,127.26,127.25,92.34217078]
[1741589037731,0.03,127.26,127.25,100.20067078]
[1741589037934,0.03,127.26,127.25,118.85031964]
[1741589038234,0.03,127.26,127.25,120.02847337]
[1741589038748,0.0001,127.26,127.25,121.60897337]
[1741589039323,0.0001,127.27,127.26,18.64964886]
[1741589039522,0.0001,127.27,127.26,291.76050276]
[1741589039741,0.0001,127.27,127.26,299.61840276]
[1741589041644,0.0001,127.27,127.26,299.76056433]
[1741589042246,0.03,127.31,127.29,40.64964886]
[1741589042553,0.03,127.31,127.3,17.76217078]
[1741589043732,0.03,127.31,127.3,25.61757078]
[1741589045642,0.03,127.31,127.3,242.51747078]
[1741589045952,0.03,127.31,127.3,261.16711964]
[1741589047355,0.0001,127.31,127.3,263.16711964]
[1741589047935,0.0001,127.32,127.31,2.0]
[1741589048135,0.0001,127.32,127.31,230.91955312]
[1741589048335,0.0001,127.32,127.31,229.74207078]
[1741589048633,0.0001,127.32,127.31,240.58424156]
[1741589048854,0.0001,127.32,127.31,603.90256433]
[1741589049048,0.03,127.36,127.33,81.4998]
[1741589049251,0.03,127.36,127.35,37.34411964]
[1741589050133,0.03,127.36,127.35,18.69447078]
[1741589052263,0.03,127.36,127.35,330.69447078]
[1741589052648,0.03,127.36,127.35,18.69447078]
[1741589054763,0.03,127.36,127.35,235.59427078]
[1741589055255,0.03,127.36,127.35,254.24391964]
[1741589055657,0.03,127.36,127.35,566.24391964]
[1741589057359,0.03,127.38,127.36,18.64964886]
[1741589057554,0.03,127.38,127.37,10.84217078]
[1741589059370,0.03,127.38,127.37,18.69327078]
[1741589060568,0.03,127.38,127.37,235.59307078]
[1741589061778,0.03,127.38,127.37,547.59307078]
[1741589063370,0.03,127.38,127.37,566.24271964]
[1741589064374,0.03,127.38,127.37,254.24271964]
[1741589068777,0.03,127.38,127.37,235.59307078]
[1741589068963,0.03,127.38,127.37,224.7509]
[1741589071376,0.03,127.38,127.36,6.92]
[1741589071965,0.14216157,127.37,127.36,6.92]
[1741589072165,0.03,127.38,127.36,6.92]
[1741589072366,0.17216157,127.38,127.36,6.92]
[1741589073477,0.17216157,127.38,127.36,14.7714]
[1741589076174,0.03,127.38,127.36,14.7714]
[1741589076386,0.03,127.38,127.36,25.61357078]
[1741589082396,0.03,127.38,127.36,25.67657078]
[1741589083391,0.03,127.38,127.36,14.8344]
[1741589086393,0.03,127.38,127.36,7.9144]
[1741589086582,0.03,127.38,127.36,6.983]
[1741589088502,0.03,127.38,127.36,14.8346]
[1741589092197,0.03,127.38,127.36,25.67677078]
[1741589092997,0.03,127.38,127.37,10.84217078]
[1741589093182,0.03,127.38,127.37,227.74197078]
[1741589095288,0.03,127.38,127.37,235.59307078]
[1741589096379,0.03,127.38,127.37,254.24271964]
[1741589098702,0.0001,127.38,127.37,254.24271964]
[1741589098908,0.03,127.43,127.38,18.64964886]
[1741589099103,0.03,127.43,127.38,235.54944886]
[1741589099407,0.03,127.43,127.4,10.84217078]
[1741589099602,0.03,127.43,127.41,6.92]
[1741589099979,0.03,127.43,127.41,17.76217078]
[1741589100996,0.03,127.43,127.42,7.848]
[1741589102589,0.03,127.43,127.41,14.7686]
[1741589102810,0.17216157,127.43,127.41,6.92]
[1741589103387,0.17216157,127.43,127.41,14.7686]
[1741589103705,0.17216157,127.43,127.41,6.92]
[1741589103894,11.01433235,127.43,127.41,6.92]
[1741589104305,0.17216157,127.43,127.41,6.92]
[1741589104925,0.03,127.43,127.41,6.92]
[1741589105097,0.17216157,127.43,127.41,6.92]
[1741589105705,0.03,127.43,127.41,14.7686]
[1741589105906,0.17216157,127.43,127.41,6.92]
[1741589107219,0.17216157,127.43,127.4,7.849]
[1741589107393,0.17216157,127.43,127.41,6.92]
[1741589108612,0.17216157,127.43,127.41,14.7686]
[1741589108819,0.03,127.43,127.41,14.7686]
[1741589110120,0.03,127.43,127.41,25.61077078]
[1741589111024,0.03,127.43,127.41,107.11057078]
[1741589112118,0.03,127.43,127.42,10.84217078]
[1741589113518,0.03,127.43,127.42,18.69017078]
[1741589114519,0.03,127.43,127.42,7.848]
[1741589116932,0.03,127.43,127.42,89.3478]
[1741589118752,9.90044935,127.46,127.42,89.3478]
[1741589121122,10.98433235,127.47,127.42,100.18997078]
[1741589121335,11.12649392,127.48,127.43,10.84217078]
[1741589123115,11.12649392,127.48,127.44,7.8468]
[1741589123315,11.12649392,127.48,127.45,6.92]
[1741589124721,0.28432314,127.48,127.45,6.92]
[1741589125038,0.17216157,127.49,127.46,7.8455]
[1741589125236,0.03,127.49,127.46,89.3453]
[1741589125426,0.03,127.49,127.46,100.18747078]
[1741589126313,0.03,127.49,127.47,10.84217078]
[1741589127747,0.03,127.49,127.48,7.8443]
[1741589130339,0.03,127.49,127.48,18.68647078]
[1741589131738,0.03,127.49,127.48,100.18627078]
[1741589132046,0.03,127.51,127.48,254.23591964]
[1741589132252,0.03,127.51,127.49,17.76217078]
[1741589133455,0.03,127.51,127.5,10.84217078]
[1741589133655,0.03,127.51,127.5,227.74197078]
[1741589134138,0.03,127.51,127.5,235.58507078]
[1741589135566,0.03,127.51,127.5,227.74197078]
[1741589136054,0.03,127.51,127.5,235.58507078]
[1741589136255,0.03,127.51,127.5,227.74197078]
[1741589136447,0.03,127.51,127.5,254.23471964]
[1741589137043,0.03,127.51,127.5,227.74197078]
[1741589137350,0.03,127.51,127.5,235.58507078]
[1741589138144,0.03,127.51,127.5,297.60340276]
[1741589138655,0.03,127.51,127.5,484.44340276]
[1741589139937,0.03,127.51,127.5,796.44340276]
[1741589140142,0.03,127.51,127.5,753.07471964]
[1741589143468,0.03,127.51,127.5,441.07471964]
[1741589147566,0.03,127.51,127.5,422.42507078]
[1741589147754,0.03,127.51,127.5,421.48197078]
[1741589148063,0.03,127.51,127.5,414.58197078]
[1741589148254,0.03,127.51,127.5,429.32507078]
[1741589148448,0.03,127.51,127.5,447.97471964]
[1741589149147,0.03,127.51,127.5,491.34340276]
[1741589149469,0.03,127.51,127.5,493.34340276]
[1741589149648,0.03,127.51,127.5,491.34340276]
[1741589149854,0.03,127.51,127.5,447.97471964]
[1741589155472,0.03,127.51,127.5,448.03771964]
[1741589156674,0.03,127.51,127.5,450.03771964]
[1741589157661,0.03,127.51,127.5,448.03771964]
[1741589159963,0.03,127.51,127.5,429.38807078]
[1741589160167,0.03,127.51,127.5,418.5459]
[1741589160559,0.03,127.51,127.5,429.38807078]
[1741589167083,0.03,127.51,127.5,418.5459]
[1741589168083,0.03,127.51,127.5,429.38807078]
[1741589168462,0.03,127.51,127.5,418.5459]
[1741589168662,0.03,127.51,127.5,429.38807078]
[1741589169385,0.03,127.51,127.5,741.38807078]
[1741589170882,0.03,127.51,127.5,760.03771964]
[1741589171074,0.0001,127.51,127.5,760.03771964]
[1741589172285,0.0001,127.51,127.5,448.03771964]
[1741589173886,0.0001,127.51,127.5,193.803]
[1741589174275,0.0001,127.51,127.5,186.903]
[1741589175785,10.84227078,127.51,127.5,186.903]
[1741589176288,10.84227078,127.51,127.5,0.063]
[1741589176486,0.0001,127.51,127.5,0.063]
[1741589177387,10.84227078,127.51,127.5,0.063]
[1741589177576,0.0001,127.51,127.5,0.063]
[1741589182187,0.0001,127.51,127.5,10.90517078]
[1741589182574,0.0001,127.51,127.5,246.45461964]
[1741589183108,0.0001,127.51,127.5,254.29771964]
[1741589184069,0.03,127.53,127.52,26.49154886]
[1741589184271,0.03,127.53,127.52,254.23341964]
[1741589184473,0.03,127.55,127.54,20.0]
[1741589184772,0.03,127.55,127.54,56.39181964]
[1741589185269,0.03,127.55,127.54,26.9]
[1741589185474,0.03,127.55,127.54,37.74217078]
[1741589185878,0.0001,127.55,127.54,273.29151964]
[1741589186072,0.0001,127.55,127.54,275.29151964]
[1741589186269,0.0001,127.55,127.54,283.13211964]
[1741589187211,0.0001,127.55,127.54,281.13211964]
[1741589187577,0.0001,127.55,127.54,593.13211964]
[1741589188172,0.0001,127.55,127.54,593.27428121]
[1741589188394,0.0001,127.55,127.54,595.13211964]
[1741589189276,0.0001,127.55,127.54,595.27428121]
[1741589191404,0.03,127.56,127.55,81.4996]
[1741589191603,0.03,127.56,127.55,227.74177078]
[1741589192482,0.03,127.56,127.55,235.58177078]
[1741589194597,0.03,127.56,127.55,254.23141964]
[1741589195400,0.03,127.56,127.55,261.13141964]
[1741589195804,0.03,127.56,127.55,216.8996]
[1741589196003,0.17216157,127.56,127.55,81.4996]
[1741589196174,11.01433235,127.56,127.54,186.76]
[1741589196994,10.84217078,127.55,127.54,186.76]
[1741589197185,18.85393235,127.56,127.54,186.76]
[1741589197498,11.01433235,127.56,127.54,186.76]
[1741589197704,0.17216157,127.56,127.54,186.76]
[1741589197895,0.17216157,127.56,127.52,100.18347078]
[1741589198106,0.17216157,127.56,127.53,6.9]
[1741589199299,0.17216157,127.56,127.53,7.8411]
[1741589199498,0.17216157,127.56,127.53,14.7411]
[1741589202910,0.17216157,127.56,127.53,7.8411]
[1741589203100,0.17216157,127.56,127.53,14.7411]
[1741589204107,11.01433235,127.56,127.53,14.7411]
[1741589204808,11.01433235,127.56,127.53,7.8411]
[1741589204996,11.01433235,127.56,127.53,14.7411]
[1741589205385,11.01433235,127.56,127.53,6.9]
[1741589206311,10.98433235,127.54,127.52,81.4996]
[1741589206508,0.14216157,127.54,127.52,81.4996]
[1741589206707,0.14216157,127.53,127.52,81.4996]
[1741589206907,0.14216157,127.53,127.51,330.0019]
[1741589207806,0.14216157,127.55,127.51,340.84407078]
[1741589208414,0.14216157,127.54,127.51,330.0019]
[1741589209189,11.01433235,127.56,127.51,340.84407078]
[1741589209395,11.01433235,127.56,127.51,422.34367078]
[1741589210214,0.17216157,127.56,127.51,422.34367078]
[1741589210508,11.01433235,127.56,127.51,422.34367078]
[1741589212916,18.85373235,127.56,127.51,422.34367078]
[1741589213116,0.14216157,127.54,127.51,411.5015]
[1741589213811,0.14216157,127.54,127.51,411.5645]
[1741589214611,10.98433235,127.54,127.51,403.7226]
[1741589215120,0.14216157,127.52,127.51,268.3226]
[1741589215322,0.14216157,127.52,127.51,186.823]
[1741589216332,10.98433235,127.52,127.51,186.823]
[1741589216722,18.82623235,127.52,127.51,186.823]
[1741589217512,0.14216157,127.52,127.51,186.823]
[1741589218926,0.14216157,127.52,127.51,7.9055]
[1741589219123,10.84217078,127.55,127.51,7.9055]
[1741589219326,0.14216157,127.54,127.51,7.9055]
[1741589219532,0.14216157,127.54,127.52,6.9]
[1741589219823,0.03,127.56,127.53,10.84217078]
[1741589220013,0.03,127.56,127.52,223.7996]
[1741589220212,0.03,127.56,127.53,10.84217078]
[1741589220416,0.03,127.56,127.55,10.84217078]
[1741589220616,0.03,127.56,127.55,227.74177078]
[1741589221222,0.03,127.56,127.55,224.7396]
[1741589221430,0.03,127.56,127.55,216.8996]
[1741589222522,0.03,127.56,127.55,224.7396]
[1741589222827,0.03,127.56,127.55,216.8996]
[1741589225318,0.17216157,127.56,127.55,216.8996]
[1741589225518,11.01433235,127.56,127.55,216.8996]
[1741589225713,11.01433235,127.56,127.53,186.78]
[1741589225914,10.98433235,127.54,127.53,193.68]
[1741589226314,0.14216157,127.54,127.53,193.68]
[1741589227538,10.98433235,127.54,127.53,193.68]
[1741589228039,0.14216157,127.54,127.53,193.68]
[1741589228540,0.14216157,127.54,127.53,6.9]
[1741589229739,0.14216157,127.54,127.53,14.7412]
[1741589230940,0.03,127.56,127.53,25.58337078]
[1741589231148,0.03,127.56,127.54,10.84217078]
[1741589231639,0.03,127.56,127.53,45.18657078]
[1741589231828,0.03,127.56,127.53,262.08617078]
[1741589232939,0.03,127.56,127.54,10.84217078]
[1741589233240,0.03,127.56,127.55,7.84]
[1741589234541,0.03,127.56,127.53,410.5796]
[1741589234744,0.03,127.56,127.54,7.8404]
[1741589234923,0.03,127.56,127.54,18.68257078]
[1741589235744,0.03,127.56,127.54,235.58217078]
[1741589237835,0.03,127.56,127.54,224.74]
[1741589242638,11.01433235,127.56,127.54,216.8996]
[1741589243233,0.14216157,127.54,127.52,6.963]
[1741589246754,10.98433235,127.54,127.52,6.963]
[1741589246960,18.82493235,127.54,127.52,6.963]
[1741589247254,10.98433235,127.54,127.52,6.963]
[1741589247938,10.98433235,127.55,127.52,6.963]
[1741589248139,10.98433235,127.55,127.52,14.8048]
[1741589248439,0.14216157,127.55,127.52,14.8049]
[1741589251856,10.84217078,127.54,127.52,6.963]
[1741589252961,0.14216157,127.53,127.52,6.963]
[1741589253136,10.98433235,127.53,127.52,0.063]
[1741589253950,11.12649392,127.53,127.52,0.063]
[1741589254869,18.96769392,127.53,127.52,0.063]
[1741589255161,31.12649392,127.53,127.52,0.063]
[1741589255361,30.98433235,127.53,127.52,0.063]
[1741589255564,31.12649392,127.53,127.52,0.063]
[1741589257764,11.12649392,127.53,127.52,0.063]
[1741589259557,31.12649392,127.53,127.52,0.063]
[1741589261776,38.96769392,127.53,127.52,0.063]
[1741589268167,20.28432314,127.53,127.52,0.063]
[1741589268373,31.12649392,127.53,127.52,0.063]
[1741589269376,11.12649392,127.53,127.52,0.063]
[1741589270250,10.98433235,127.53,127.52,0.063]
[1741589271872,18.96769392,127.53,127.52,0.063]
[1741589275972,37.61734278,127.53,127.52,0.063]
[1741589280277,0.28432314,127.53,127.52,0.063]
[1741589280462,0.14216157,127.53,127.52,0.063]
[1741589280658,11.12649392,127.53,127.52,0.063]
[1741589281069,0.14216157,127.53,127.52,0.063]
[1741589281268,10.98433235,127.53,127.52,0.063]
[1741589281859,0.14216157,127.53,127.52,0.063]
[1741589284168,0.03,127.55,127.52,0.063]
[1741589284483,0.17216157,127.55,127.52,0.063]
[1741589284785,0.17216157,127.55,127.53,6.9]
[1741589285180,0.03,127.55,127.53,6.9]
[1741589286699,10.87217078,127.55,127.53,6.9]
[1741589287175,0.14216157,127.53,127.52,216.9626]
[1741589289286,0.14216157,127.53,127.52,81.5626]
[1741589290274,11.15649392,127.55,127.52,81.5626]
[1741589290863,0.17216157,127.55,127.52,81.5626]
[1741589291077,0.03,127.55,127.52,100.24647078]
[1741589292073,0.03,127.55,127.52,89.4043]
[1741589293391,0.03,127.55,127.52,235.64647078]
[1741589294785,0.03,127.55,127.53,10.84217078]
[1741589295874,0.03,127.55,127.54,7.8406]
[1741589296516,0.03,127.55,127.54,237.16777078]
[1741589297021,0.03,127.56,127.55,100.11924886]
[1741589297171,0.03,127.56,127.55,253.26141964]
[1741589297779,0.03,127.56,127.55,261.10141964]
[1741589300698,0.53,127.58,127.56,24.98344886]
[1741589300896,0.53,127.58,127.57,10.84217078]
[1741589301092,0.53,127.58,127.57,18.68097078]
[1741589301301,0.53,127.58,127.57,235.55057078]
[1741589302991,0.53,127.58,127.57,422.29057078]
[1741589304001,0.53,127.58,127.57,440.94021964]
[1741589308692,0.53,127.58,127.57,414.45177078]
[1741589309086,0.53,127.58,127.57,403.6096]
[1741589309794,0.53,127.58,127.57,414.45177078]
[1741589310182,0.53,127.58,127.57,403.6096]
[1741589310584,0.67216157,127.58,127.57,403.6096]
[1741589312484,0.67216157,127.58,127.57,216.8696]
[1741589312895,19.49469392,127.58,127.57,81.4696]
[1741589314096,19.49469392,127.58,127.53,186.783]
[1741589314293,10.98433235,127.54,127.53,186.783]
[1741589315805,18.82493235,127.54,127.53,186.783]
[1741589316002,18.96709392,127.54,127.53,0.063]
[1741589318810,37.61674278,127.54,127.53,0.063]
[1741589322910,11.12649392,127.54,127.53,0.063]
[1741589323294,37.61674278,127.54,127.53,0.063]
[1741589326218,0.28432314,127.53,127.52,0.063]
[1741589326517,11.12649392,127.53,127.52,0.063]
[1741589327414,18.96769392,127.53,127.52,0.063]
[1741589330401,8.12552314,127.53,127.52,0.063]
[1741589330622,18.96769392,127.53,127.52,0.063]
[1741589332518,37.61734278,127.53,127.52,0.0001]
[1741589332725,37.61734278,127.53,127.5,0.063]
[1741589332726,20.28432314,127.51,127.5,0.063]
[1741589332931,18.933972,127.5,127.48,0.063]
[1741589333107,11.12649392,127.49,127.48,0.063]
[1741589334129,10.98433235,127.49,127.48,0.063]
[1741589334447,11.12649392,127.49,127.48,0.063]
[1741589334810,18.97019392,127.49,127.48,0.063]
[1741589339538,11.12649392,127.49,127.48,0.063]
[1741589340020,18.97019392,127.49,127.48,0.063]
[1741589342352,11.12649392,127.49,127.48,0.063]
[1741589343552,0.14216157,127.49,127.48,0.063]
[1741589344759,10.98433235,127.49,127.48,0.063]
[1741589345050,11.12649392,127.49,127.48,0.063]
[1741589345348,18.97019392,127.49,127.48,0.063]
[1741589349142,11.12649392,127.49,127.48,0.063]
[1741589349320,20.28432314,127.49,127.48,0.063]
[1741589349520,0.28432314,127.49,127.48,0.063]
[1741589349743,11.12649392,127.49,127.48,0.063]
[1741589350044,18.97019392,127.49,127.48,0.063]
[1741589350229,38.97019392,127.49,127.48,0.063]
[1741589352534,31.12649392,127.49,127.48,0.063]
[1741589353229,0.14216157,127.49,127.48,0.063]
[1741589356931,0.03,127.5,127.48,216.9326]
[1741589357129,0.17216157,127.5,127.48,216.9326]
[1741589357344,11.01433235,127.5,127.48,216.9326]
[1741589357533,10.98433235,127.49,127.48,216.9326]
[1741589357831,0.14216157,127.49,127.48,216.9326]
[1741589358553,10.98433235,127.49,127.48,216.9326]
[1741589360049,0.14216157,127.49,127.48,216.9326]
[1741589360551,0.14216157,127.49,127.48,81.5326]
[1741589364032,0.17216157,127.5,127.48,216.9326]
[1741589366636,0.17216157,127.5,127.48,224.7769]
[1741589366831,0.17216157,127.5,127.49,6.9]
[1741589368150,0.03,127.5,127.49,14.7437]
[1741589368342,0.03,127.5,127.49,16.3445]
[1741589368654,0.03,127.5,127.49,233.2141]
[1741589369154,0.03,127.5,127.49,225.3704]
[1741589370181,0.03,127.5,127.49,223.7696]
[1741589370354,0.14216157,127.49,127.48,0.063]
[1741589370539,11.12649392,127.49,127.48,0.063]
[1741589371851,0.28432314,127.49,127.48,0.063]
[1741589372865,0.14216157,127.49,127.48,0.063]
[1741589374266,0.28432314,127.49,127.48,0.063]
[1741589375065,20.28432314,127.49,127.48,0.063]
[1741589375767,30.98433235,127.49,127.48,0.063]
[1741589378069,0.14216157,127.49,127.48,0.063]
[1741589379961,0.03,127.5,127.48,0.063]
[1741589380164,0.03,127.5,127.48,1.5778]
[1741589380361,0.03,127.5,127.48,229.28957078]
[1741589382075,0.03,127.5,127.49,7.8437]
[1741589383262,0.03,127.5,127.49,235.55547078]
[1741589388674,0.03,127.54,127.5,100.08924886]
[1741589388863,0.03,127.54,127.51,17.74217078]
[1741589391380,0.03,127.54,127.52,7.8419]
[1741589392281,0.03,127.54,127.52,18.68407078]
[1741589392475,0.03,127.54,127.53,10.84217078]
[1741589392679,0.03,127.54,127.53,227.68177078]
[1741589393670,0.03,127.54,127.53,235.52297078]
[1741589394983,0.03,127.54,127.53,254.17261964]
[1741589395159,0.53,127.58,127.53,254.17261964]
[1741589395367,0.53,127.58,127.57,10.84217078]
[1741589395562,0.53,127.58,127.57,234.58177078]
[1741589395990,0.53,127.58,127.57,242.42057078]
[1741589396894,0.53,127.58,127.57,223.7396]
[1741589398185,0.67216157,127.58,127.57,88.3396]
[1741589399468,0.53,127.58,127.57,88.3396]
[1741589404572,0.53,127.58,127.57,107.02057078]
[1741589405398,0.53,127.58,127.57,96.1784]
[1741589407090,0.53,127.58,127.57,88.3396]
[1741589407681,0.53,127.58,127.57,96.1784]
[1741589408092,0.53,127.58,127.57,242.42057078]
[1741589411409,0.53,127.58,127.57,231.5784]
[1741589411581,0.53,127.58,127.57,242.42057078]
[1741589411782,0.53,127.58,127.57,223.7396]
[1741589412801,0.03,127.62,127.6,81.4395]
[1741589412999,0.03,127.62,127.61,36.37181964]
[1741589413786,0.03,127.62,127.61,44.20811964]
[1741589416902,0.03,127.62,127.61,46.99420559]
[1741589417094,0.03,127.63,127.62,100.05914886]
[1741589417424,0.03,127.63,127.62,110.90131964]
[1741589417803,0.03,127.63,127.62,118.73701964]
[1741589419823,0.03,127.63,127.62,430.73701964]